bitfinex/quotes_BTCUSD_20220731
["timestamp","ask_amount","ask_price","bid_price","bid_amount"]
[1659303727157,0.08659435,23624.0,23622.0,0.04205]
[1659303727398,0.08620446,23624.0,23623.0,0.40725733]
[1659303727819,0.00720446,23624.0,23623.0,0.40725733]
[1659303728108,0.08720446,23624.0,23623.0,0.44930733]
[1659303728585,0.08720446,23624.0,23623.0,1.14930733]
[1659303729649,0.00720446,23624.0,23623.0,1.14930733]
[1659303730108,0.00720446,23624.0,23623.0,1.16930733]
[1659303731481,0.00720446,23624.0,23623.0,1.59140733]
[1659303732023,0.08620446,23624.0,23623.0,1.59140733]
[1659303732238,0.08620446,23624.0,23623.0,1.99140733]
[1659303732453,0.08620446,23624.0,23623.0,2.05480733]
[1659303733362,0.00720446,23624.0,23623.0,2.05480733]
[1659303733597,0.00720446,23624.0,23623.0,0.82340733]
[1659303734051,0.00720446,23624.0,23623.0,0.88040733]
[1659303734509,0.00720446,23624.0,23623.0,1.32250733]
[1659303735379,0.00720446,23624.0,23623.0,1.26550733]
[1659303735821,0.00720446,23624.0,23623.0,1.66550733]
[1659303736053,0.00720446,23624.0,23623.0,1.72450733]
[1659303737450,0.00720446,23624.0,23623.0,1.66550733]
[1659303738117,0.00720446,23624.0,23623.0,1.76220733]
[1659303738769,0.00247658,23624.0,23623.0,1.76220733]
[1659303738998,0.002,23626.0,23624.0,1.012801]
[1659303739237,0.002,23626.0,23625.0,1.29935733]
[1659303739517,0.002,23626.0,23625.0,1.41275733]
[1659303739716,0.002,23626.0,23625.0,1.45480733]
[1659303739927,0.002,23626.0,23625.0,1.83389733]
[1659303740148,0.002,23626.0,23625.0,1.86089733]
[1659303740827,0.00673286,23626.0,23625.0,1.86089733]
[1659303741340,0.3036048,23634.0,23625.0,1.83389733]
[1659303741577,6.27e-05,23634.0,23630.0,0.80725733]
[1659303741788,6.27e-05,23634.0,23631.0,0.40725733]
[1659303741789,0.03506305,23633.0,23631.0,0.40725733]
[1659303742219,0.00038989,23633.0,23631.0,0.40725733]
[1659303742460,0.03176,23636.0,23631.0,0.40725733]
[1659303742925,0.00700769,23634.0,23631.0,0.40725733]
[1659303743149,0.00700769,23634.0,23633.0,0.4]
[1659303743462,0.00700769,23634.0,23633.0,0.7]
[1659303743680,0.00700769,23634.0,23633.0,1.10725733]
[1659303743887,0.00694497,23634.0,23633.0,1.54935733]
[1659303744305,0.00694497,23634.0,23633.0,1.10725733]
[1659303744522,0.00694497,23634.0,23633.0,0.74205]
[1659303744796,0.00694497,23634.0,23633.0,0.7]
[1659303745254,0.00694497,23634.0,23633.0,1.10725733]
[1659303745930,0.00694497,23634.0,23633.0,1.54935733]
[1659303746147,0.00694497,23634.0,23633.0,0.7]
[1659303746378,0.00694497,23634.0,23631.0,0.147772]
[1659303746588,0.00694497,23634.0,23631.0,0.44930733]
[1659303747009,0.0070079,23634.0,23631.0,0.44930733]
[1659303747457,0.0070079,23634.0,23630.0,0.04205]
[1659303747458,0.06,23632.0,23630.0,0.04205]
[1659303747687,0.48043785,23631.0,23630.0,0.04205]
[1659303747906,0.47917405,23631.0,23630.0,0.04205]
[1659303748120,0.14506305,23631.0,23630.0,0.04205]
[1659303748564,0.11683305,23631.0,23630.0,0.04205]
[1659303748774,0.08506305,23631.0,23630.0,0.04205]
[1659303749447,0.11683305,23631.0,23630.0,0.04205]
[1659303749661,0.05,23625.0,23623.0,0.16190552]
[1659303749872,0.11684305,23624.0,23623.0,0.16190552]
[1659303750092,0.41918405,23624.0,23623.0,0.16190552]
[1659303750313,0.52410038,23624.0,23618.0,0.4]
[1659303750545,0.49232038,23624.0,23618.0,0.4]
[1659303750754,0.49232038,23624.0,23617.0,0.00019189]
[1659303750755,0.06,23619.0,23617.0,0.00019189]
[1659303750972,0.06,23618.0,23613.0,0.654]
[1659303751424,0.06,23618.0,23614.0,1.68007147]
[1659303751649,0.45725733,23620.0,23614.0,1.68007147]
[1659303752111,0.079,23618.0,23614.0,2.0873288]
[1659303753313,0.05657207,23620.0,23615.0,6.885e-05]
[1659303753535,0.05940866,23619.0,23615.0,6.885e-05]
[1659303754215,0.05,23617.0,23615.0,6.885e-05]
[1659303754433,0.40725733,23618.0,23614.0,1.68007147]
[1659303754665,0.43904733,23618.0,23616.0,6.885e-05]
[1659303754887,0.40725733,23618.0,23616.0,6.885e-05]
[1659303755600,0.49845599,23619.0,23614.0,1.68007147]
[1659303755814,0.46666599,23619.0,23614.0,1.68007147]
[1659303756034,0.079,23618.0,23614.0,1.68007147]
[1659303756255,0.079,23618.0,23615.0,0.3]
[1659303756484,0.079,23618.0,23615.0,0.105802]
[1659303756729,0.00219069,23617.0,23615.0,0.405802]
[1659303758166,0.08119069,23617.0,23615.0,0.405802]
[1659303759327,0.00219069,23617.0,23615.0,0.81305933]
[1659303759961,0.00219069,23617.0,23616.0,0.01264348]
[1659303760186,0.08119069,23617.0,23616.0,0.01264348]
[1659303760878,0.08557207,23617.0,23616.0,0.01264348]
[1659303761334,0.00657207,23617.0,23616.0,0.01264348]
[1659303762019,0.08557207,23617.0,23616.0,0.01264348]
[1659303762261,0.08557207,23617.0,23615.0,0.86305933]
[1659303762485,0.08557207,23617.0,23616.0,0.40725733]
[1659303763010,0.08557207,23617.0,23616.0,0.70725733]
[1659303763459,0.00657207,23617.0,23616.0,0.40725733]
[1659303764115,0.08557207,23617.0,23616.0,0.40725733]
[1659303765302,0.00657207,23617.0,23616.0,0.40725733]
[1659303766001,0.08557207,23617.0,23616.0,0.40725733]
[1659303766226,0.08557207,23617.0,23616.0,0.70725733]
[1659303766909,0.08557207,23617.0,23616.0,0.41990081]
[1659303767384,0.00657207,23617.0,23616.0,0.71990081]
[1659303767901,0.08557207,23617.0,23616.0,0.71990081]
[1659303768126,0.08557207,23617.0,23616.0,0.75157217]
[1659303768571,0.08338138,23617.0,23616.0,2.08018528]
[1659303769226,0.08338138,23617.0,23616.0,2.52228528]
[1659303769674,0.00438138,23617.0,23616.0,2.52228528]
[1659303769895,0.00438138,23617.0,23616.0,2.52728528]
[1659303770115,0.00438138,23617.0,23616.0,2.08518528]
[1659303770327,0.00438138,23617.0,23616.0,1.7225418]
[1659303771293,0.00438138,23617.0,23616.0,1.7175418]
[1659303771509,0.00438138,23617.0,23616.0,1.7675418]
[1659303771729,0.00438138,23617.0,23616.0,2.0675418]
[1659303771941,0.00438138,23617.0,23616.0,2.0805418]
[1659303772660,0.00438138,23617.0,23616.0,2.0305418]
[1659303773320,0.00438138,23617.0,23616.0,2.0175418]
[1659303773725,0.00438138,23617.0,23616.0,2.0675418]
[1659303773938,0.00438138,23617.0,23616.0,2.0805418]
[1659303774599,0.00438138,23617.0,23616.0,2.0305418]
[1659303774812,0.004317,23617.0,23616.0,2.04318528]
[1659303775250,0.004317,23617.0,23616.0,1.78018528]
[1659303775679,0.004317,23617.0,23616.0,1.83018528]
[1659303775890,0.004317,23617.0,23616.0,1.07128447]
[1659303776135,0.41157433,23617.0,23616.0,1.07128447]
[1659303777257,0.41157433,23617.0,23616.0,1.06028447]
[1659303777913,0.41157433,23617.0,23616.0,1.13528447]
[1659303779426,0.004317,23617.0,23616.0,1.13528447]
[1659303779647,0.41157433,23617.0,23616.0,1.13528447]
[1659303779925,0.41157433,23617.0,23616.0,1.22223799]
[1659303780146,0.49057433,23617.0,23616.0,1.22223799]
[1659303780617,0.54057433,23617.0,23616.0,1.22223799]
[1659303780834,0.87585933,23617.0,23616.0,1.19056663]
[1659303781055,0.87470533,23617.0,23616.0,1.19056663]
[1659303781320,0.49336433,23617.0,23616.0,1.19056663]
[1659303781552,0.46157433,23617.0,23616.0,1.19056663]
[1659303781766,0.49336433,23617.0,23616.0,1.19056663]
[1659303781996,0.83770533,23617.0,23616.0,1.19056663]
[1659303782473,0.80591533,23617.0,23616.0,1.19056663]
[1659303782702,0.50357433,23617.0,23616.0,1.19056663]
[1659303783378,0.79570533,23617.0,23616.0,0.99915777]
[1659303784037,0.86470533,23617.0,23616.0,0.99915777]
[1659303785473,0.86470533,23617.0,23612.0,0.00019157]
[1659303785474,0.05,23613.0,23612.0,0.00019157]
[1659303785705,0.05,23613.0,23612.0,0.00366347]
[1659303785706,0.75959833,23613.0,23612.0,0.00366347]
[1659303785925,0.05,23610.0,23609.0,0.002]
[1659303786152,0.75959833,23610.0,23609.0,0.002]
[1659303787064,2.60501822,23610.0,23609.0,0.002]
[1659303787280,0.15940866,23609.0,23602.0,0.3544]
[1659303787503,0.40725733,23608.0,23601.0,0.6571]
[1659303787991,0.40725733,23608.0,23601.0,0.0031]
[1659303788437,0.05,23606.0,23601.0,0.0031]
[1659303788674,0.40725733,23608.0,23601.0,0.0031]
[1659303788675,0.05,23602.0,23601.0,0.0031]
[1659303788918,0.352341,23602.0,23601.0,0.0031]
[1659303789169,0.05,23604.0,23601.0,0.0031]
[1659303790073,0.129,23604.0,23601.0,0.0031]
[1659303790321,0.03506305,23603.0,23601.0,0.0031]
[1659303790541,0.079,23604.0,23601.0,0.0031]
[1659303790782,0.079,23604.0,23600.0,0.1682]
[1659303791232,0.03506305,23603.0,23600.0,0.1682]
[1659303791473,0.05940866,23599.0,23598.0,0.00493304]
[1659303791709,0.05940866,23599.0,23591.0,0.20642831]
[1659303791710,0.05940866,23592.0,23591.0,0.20642831]
[1659303791960,0.05940866,23592.0,23590.0,0.00142857]
[1659303791961,0.51666599,23592.0,23590.0,0.00142857]
[1659303792188,0.41213955,23591.0,23590.0,0.00142857]
[1659303792422,0.44681271,23591.0,23590.0,0.00142857]
[1659303792637,0.93589004,23591.0,23582.0,0.06205]
[1659303793089,6e-05,23589.0,23582.0,0.06205]
[1659303793106,0.05,23588.0,23586.0,0.00027636]
[1659303793344,0.05940866,23587.0,23586.0,0.00027636]
[1659303793575,0.05940866,23587.0,23574.0,0.01264348]
[1659303793576,0.05,23579.0,23574.0,0.01264348]
[1659303793803,0.05940866,23582.0,23574.0,0.01292472]
[1659303793804,0.40725733,23578.0,23574.0,0.01292472]
[1659303794037,0.05940866,23582.0,23574.0,0.40725733]
[1659303794503,0.40725733,23581.0,23574.0,0.40725733]
[1659303794741,0.05940866,23582.0,23576.0,0.4]
[1659303794982,0.10983,23587.0,23576.0,0.80725733]
[1659303795207,0.40725733,23581.0,23576.0,0.4]
[1659303795449,0.40725733,23581.0,23576.0,0.01264348]
[1659303795718,0.75725733,23585.0,23576.0,0.40990081]
[1659303795946,2.2136911,23580.0,23576.0,0.01264348]
[1659303796182,2.2136911,23580.0,23573.0,0.40008092]
[1659303796183,0.40725733,23579.0,23573.0,0.40008092]
[1659303796423,0.40725733,23579.0,23570.0,0.4037]
[1659303796424,0.3,23578.0,23570.0,0.4]
[1659303796659,0.40725733,23577.0,23569.0,0.4]
[1659303797131,0.40725733,23577.0,23573.0,6.74e-05]
[1659303797377,0.25940866,23574.0,23573.0,6.74e-05]
[1659303797604,0.96900699,23574.0,23573.0,6.74e-05]
[1659303797835,0.91900699,23574.0,23573.0,6.74e-05]
[1659303798061,0.95200699,23574.0,23573.0,6.74e-05]
[1659303798292,0.95200699,23574.0,23569.0,0.00026964]
[1659303798293,0.98707004,23574.0,23565.0,0.03152136]
[1659303798535,0.68472904,23574.0,23566.0,0.40725733]
[1659303798786,0.68472904,23574.0,23566.0,0.40225733]
[1659303798787,0.49323276,23572.0,23566.0,0.40225733]
[1659303799026,0.49323276,23572.0,23567.0,0.01264348]
[1659303799257,0.09240866,23574.0,23568.0,0.4]
[1659303799492,0.00642627,23577.0,23568.0,0.87065733]
[1659303799727,0.00642627,23577.0,23569.0,0.70725733]
[1659303799953,0.00642627,23577.0,23570.0,0.40725733]
[1659303800184,0.024,23574.0,23571.0,0.3]
[1659303800412,0.024,23574.0,23571.0,0.70725733]
[1659303800915,0.05906305,23574.0,23571.0,0.70725733]
[1659303801143,0.05906305,23574.0,23572.0,0.01264348]
[1659303801144,0.024,23574.0,23572.0,0.01264348]
[1659303801381,0.02823762,23574.0,23572.0,0.01264348]
[1659303801608,0.02823762,23574.0,23571.0,0.40725733]
[1659303801834,0.00423762,23574.0,23571.0,0.40725733]
[1659303802074,0.06330067,23574.0,23571.0,0.40725733]
[1659303802299,0.06330067,23574.0,23571.0,0.41990081]
[1659303802515,0.02823762,23574.0,23571.0,0.41990081]
[1659303802745,0.02823762,23574.0,23572.0,0.3]
[1659303802973,0.02823762,23574.0,23571.0,0.41990081]
[1659303803238,0.02823762,23574.0,23572.0,0.3]
[1659303803239,0.02862751,23574.0,23572.0,0.3]
[1659303803484,0.00423762,23574.0,23572.0,0.00020746]
[1659303803947,0.00423762,23574.0,23572.0,0.31285094]
[1659303804159,0.02623762,23574.0,23572.0,0.31285094]
[1659303804877,0.02623762,23574.0,23573.0,0.40725733]
[1659303805109,0.02623762,23574.0,23573.0,2.09935733]
[1659303805340,0.02623762,23574.0,23573.0,1.80200081]
[1659303805591,0.02623762,23574.0,23573.0,1.78385081]
[1659303805821,0.00423762,23574.0,23573.0,1.81325733]
[1659303806060,7.843e-05,23586.0,23573.0,2.62435733]
[1659303806293,7.843e-05,23586.0,23581.0,0.3999334]
[1659303806555,0.51319562,23587.0,23584.0,0.3999334]
[1659303806786,0.51319562,23587.0,23585.0,0.70746467]
[1659303807029,0.51319562,23587.0,23586.0,0.45725733]
[1659303807279,0.51319562,23587.0,23586.0,1.19935733]
[1659303807521,0.19259562,23587.0,23586.0,1.21200081]
[1659303807756,6.646e-05,23594.0,23591.0,0.4421]
[1659303807992,6.646e-05,23594.0,23593.0,0.4499334]
[1659303808221,1.1198287,23603.0,23597.0,0.01997354]
[1659303808532,1.1198287,23603.0,23598.0,0.40725733]
[1659303808533,0.302341,23602.0,23598.0,0.40725733]
[1659303808768,0.302341,23601.0,23599.0,1.14935733]
[1659303809014,0.051,23608.0,23599.0,1.14935733]
[1659303809015,0.001,23608.0,23602.0,0.40725733]
[1659303809236,0.001,23608.0,23603.0,0.3]
[1659303809472,0.001,23608.0,23604.0,0.40725733]
[1659303809753,0.001,23608.0,23605.0,0.3]
[1659303809981,0.079,23608.0,23606.0,0.40725733]
[1659303810458,0.079,23608.0,23607.0,0.05]
[1659303810691,0.05,23606.0,23601.0,0.04205]
[1659303810926,0.40725733,23607.0,23601.0,0.04205]
[1659303810927,0.05,23603.0,23601.0,0.04205]
[1659303811182,0.67285687,23602.0,23601.0,0.04205]
[1659303811407,0.88072616,23602.0,23601.0,0.04205]
[1659303811645,0.88072616,23602.0,23597.0,0.01997354]
[1659303811887,0.302341,23601.0,23598.0,0.03705]
[1659303812117,0.57838516,23602.0,23598.0,0.03696923]
[1659303812371,0.57838516,23602.0,23597.0,0.42723087]
[1659303813061,0.302341,23601.0,23597.0,0.42723087]
[1659303813297,0.05940866,23598.0,23597.0,0.01997354]
[1659303813527,0.51666599,23598.0,23597.0,0.01997354]
[1659303813740,0.81900699,23598.0,23597.0,0.01997354]
[1659303814215,0.88000699,23598.0,23590.0,0.1]
[1659303814447,0.57766599,23598.0,23590.0,0.50725733]
[1659303815329,0.03182,23597.0,23590.0,0.40725733]
[1659303816034,0.08882,23597.0,23590.0,0.40725733]
[1659303816801,0.107,23597.0,23590.0,0.40725733]
[1659303817033,0.05,23594.0,23590.0,0.40725733]
[1659303817256,0.15,23595.0,23589.0,0.40725733]
[1659303818168,0.229,23595.0,23589.0,0.40725733]
[1659303818658,0.079,23595.0,23589.0,0.40725733]
[1659303818941,0.079,23595.0,23590.0,1.0]
[1659303819158,0.079,23595.0,23591.0,0.40725733]
[1659303819382,0.00588513,23597.0,23592.0,0.3035837]
[1659303819612,0.00588513,23597.0,23593.0,0.40725733]
[1659303819840,0.00588513,23597.0,23593.0,0.80725733]
[1659303820127,0.08488513,23597.0,23594.0,0.3]
[1659303820353,0.08488513,23597.0,23596.0,0.05]
[1659303820796,0.08488513,23597.0,23595.0,0.00358325]
[1659303821033,0.08488513,23597.0,23596.0,0.05]
[1659303821497,0.00588513,23597.0,23596.0,0.45725733]
[1659303821734,0.00588513,23597.0,23596.0,0.46990081]
[1659303821952,0.00588513,23597.0,23596.0,0.47890081]
[1659303822179,0.07288513,23597.0,23596.0,0.41625733]
[1659303824075,0.07288513,23597.0,23596.0,0.47425733]
[1659303824318,0.07288513,23597.0,23596.0,0.46525733]
[1659303824319,0.00588513,23597.0,23596.0,0.46525733]
[1659303824551,0.00588513,23597.0,23596.0,0.82790081]
[1659303824772,0.00588513,23597.0,23596.0,1.37000081]
[1659303824987,0.00588513,23597.0,23596.0,1.41205081]
[1659303825235,0.00588513,23597.0,23596.0,1.47595081]
[1659303825454,8.513e-05,23597.0,23596.0,1.77510021]
[1659303825675,0.00198305,23597.0,23596.0,1.46795081]
[1659303825919,0.00198305,23597.0,23596.0,1.41785635]
[1659303826138,0.00198305,23597.0,23596.0,1.48585635]
[1659303826370,0.00198305,23597.0,23596.0,1.53585635]
[1659303826624,0.00198305,23597.0,23596.0,1.48585635]
[1659303826850,0.00577955,23597.0,23596.0,1.48585635]
[1659303827294,0.00577955,23597.0,23596.0,1.41785635]
[1659303827524,0.00577955,23597.0,23596.0,1.71995635]
[1659303827781,0.00577955,23597.0,23596.0,1.66995635]
[1659303828004,0.00577955,23597.0,23596.0,1.74095635]
[1659303828708,0.00388955,23597.0,23596.0,1.74095635]
[1659303828958,0.50947707,23604.0,23596.0,1.79095635]
[1659303829190,0.50947707,23604.0,23602.0,0.4]
[1659303829416,0.50947707,23604.0,23603.0,0.7078019]
[1659303830110,0.57247707,23604.0,23603.0,0.4178019]
[1659303830626,0.063,23604.0,23603.0,0.41725733]
[1659303830855,0.06483543,23604.0,23603.0,0.41725733]
[1659303831314,0.06483543,23604.0,23603.0,0.71725733]
[1659303831535,0.00183543,23604.0,23603.0,0.70725733]
[1659303832015,0.06483543,23604.0,23603.0,0.71725733]
[1659303833352,0.00183543,23604.0,23603.0,0.70725733]
[1659303833581,0.00183543,23604.0,23603.0,0.40725733]
[1659303833824,0.00183543,23604.0,23603.0,0.7084118]
[1659303834038,0.06683543,23604.0,23603.0,0.013]
[1659303834717,0.06683543,23604.0,23603.0,0.01415447]
[1659303834941,0.06683543,23604.0,23603.0,0.013]
[1659303835161,0.06683543,23604.0,23603.0,0.40725733]
[1659303835389,0.00183543,23604.0,23603.0,0.84935733]
[1659303835709,0.00183543,23604.0,23603.0,1.10725733]
[1659303836143,0.08183543,23604.0,23603.0,1.10725733]
[1659303836373,0.07865684,23604.0,23603.0,1.27085733]
[1659303836612,0.07865684,23604.0,23603.0,1.76765081]
[1659303836837,0.07865684,23604.0,23603.0,1.81765081]
[1659303837325,0.00183543,23605.0,23603.0,1.81765081]
[1659303837556,0.00183543,23605.0,23604.0,0.89935733]
[1659303837791,0.00183543,23605.0,23604.0,1.19993237]
[1659303838021,0.51309848,23609.0,23605.0,0.15]
[1659303838288,0.03179,23613.0,23605.0,0.15]
[1659303838289,0.3,23614.0,23606.0,1.01891933]
[1659303838522,0.3,23614.0,23607.0,0.70725733]
[1659303838756,0.33179,23614.0,23608.0,0.40725733]
[1659303839229,0.6114,23615.0,23609.0,0.3]
[1659303839489,0.30241953,23614.0,23609.0,0.70725733]
[1659303839730,7.853e-05,23614.0,23609.0,0.40725733]
[1659303840175,0.079,23615.0,23609.0,0.40725733]
[1659303840409,0.381341,23615.0,23609.0,0.40725733]
[1659303840646,0.297341,23614.0,23609.0,0.40725733]
[1659303840894,7.853e-05,23614.0,23609.0,0.40725733]
[1659303841310,0.30242353,23614.0,23609.0,0.80725733]
[1659303841540,7.853e-05,23614.0,23609.0,0.80725733]
[1659303841768,0.00181432,23613.0,23609.0,0.80725733]
[1659303842038,0.00181432,23613.0,23610.0,0.002854]
[1659303842947,0.30415932,23613.0,23610.0,0.002854]
[1659303843177,0.00181432,23613.0,23610.0,0.002854]
[1659303843371,0.03687737,23613.0,23610.0,0.002854]
[1659303843632,0.00181432,23613.0,23610.0,0.002854]
[1659303844119,0.08081432,23613.0,23610.0,0.002854]
[1659303844577,0.11587737,23613.0,23610.0,0.002854]
[1659303844819,0.11587737,23613.0,23610.0,0.00522543]
[1659303845050,0.08081432,23613.0,23610.0,0.00522543]
[1659303845274,0.30415932,23613.0,23610.0,0.00522543]
[1659303845497,0.30415932,23613.0,23610.0,0.30237143]
[1659303845728,0.00181432,23613.0,23610.0,0.00237143]
[1659303846209,0.38315932,23613.0,23610.0,0.00237143]
[1659303846895,0.38315932,23613.0,23611.0,0.00285387]
[1659303847161,0.03467316,23612.0,23610.0,0.3]
[1659303847377,0.30415932,23613.0,23608.0,0.40819843]
[1659303847612,0.00181432,23613.0,23608.0,0.81545576]
[1659303848066,0.08081432,23613.0,23609.0,0.05]
[1659303848293,0.08081432,23613.0,23610.0,0.002854]
[1659303848555,0.38315932,23613.0,23610.0,0.302854]
[1659303848783,0.08081432,23613.0,23610.0,0.302854]
[1659303849027,0.38315932,23613.0,23610.0,0.302497]
[1659303849263,0.08081432,23613.0,23610.0,0.302497]
[1659303849483,0.00181432,23613.0,23610.0,0.302497]
[1659303849739,0.00181432,23613.0,23610.0,0.31751191]
[1659303850198,0.08081432,23613.0,23610.0,0.31751191]
[1659303850432,0.08081432,23613.0,23612.0,0.9139]
[1659303850666,0.08081432,23613.0,23612.0,1.17115733]
[1659303850896,0.08081432,23613.0,23612.0,2.01325733]
[1659303851157,0.00219069,23618.0,23612.0,2.01325733]
[1659303851158,0.00219069,23618.0,23613.0,0.6421]
[1659303851394,0.00219069,23618.0,23617.0,1.3921]
[1659303851616,0.00219069,23618.0,23617.0,2.11339998]
[1659303851844,0.00219069,23618.0,23617.0,2.12604346]
[1659303852063,0.00219069,23618.0,23617.0,2.22804346]
[1659303852292,0.00219069,23618.0,23617.0,2.17804346]
[1659303852524,0.001,23620.0,23619.0,0.4921]
[1659303852525,0.00019069,23620.0,23619.0,0.4921]
[1659303852756,1.93418003,23626.0,23621.0,0.05]
[1659303852757,1.93143381,23626.0,23621.0,0.05]
[1659303852986,1.93143381,23626.0,23622.0,0.40725733]
[1659303852987,0.302345,23625.0,23622.0,0.40725733]
[1659303853212,0.6434,23629.0,23623.0,0.3]
[1659303853437,0.302345,23627.0,23624.0,0.40725733]
[1659303853702,0.03177,23630.0,23624.0,0.40725733]
[1659303853940,0.302345,23629.0,23625.0,0.3]
[1659303854171,0.302345,23628.0,23626.0,0.41078777]
[1659303854393,0.302345,23627.0,23626.0,0.00353044]
[1659303854628,0.53271236,23631.0,23626.0,0.05026044]
[1659303854916,0.302345,23630.0,23626.0,0.75751777]
[1659303855138,0.302345,23629.0,23627.0,0.40725733]
[1659303855378,0.53271236,23631.0,23627.0,0.40725733]
[1659303855606,0.53271236,23631.0,23628.0,0.3]
[1659303855835,0.53271236,23631.0,23629.0,0.40725733]
[1659303856559,0.53271236,23631.0,23630.0,0.45]
[1659303856790,0.53271236,23631.0,23630.0,1.34935733]
[1659303857023,0.53279088,23631.0,23630.0,1.66651633]
[1659303857724,0.53279088,23631.0,23630.0,1.27699221]
[1659303857951,0.53271236,23631.0,23630.0,1.27699221]
[1659303858192,0.53271236,23631.0,23630.0,1.84804221]
[1659303858418,7.003e-05,23632.0,23630.0,1.52428569]
[1659303858665,7.003e-05,23632.0,23631.0,0.49930733]
[1659303858907,7.003e-05,23632.0,23631.0,0.79930733]
[1659303858908,0.00173228,23632.0,23631.0,0.79930733]
[1659303859396,0.00166225,23632.0,23631.0,1.24140733]
[1659303859625,0.00166225,23632.0,23631.0,1.21200081]
[1659303859842,0.00164294,23633.0,23631.0,1.26200081]
[1659303860079,0.00164294,23633.0,23632.0,2.29145233]
[1659303860764,0.00164294,23633.0,23632.0,2.34614581]
[1659303862125,0.00164294,23633.0,23632.0,2.38309581]
[1659303862598,0.00164294,23633.0,23632.0,1.84099581]
[1659303862817,0.00164294,23633.0,23632.0,1.76475233]
[1659303862818,0.00332472,23633.0,23632.0,1.76475233]
[1659303863303,0.00332472,23633.0,23632.0,1.63575233]
[1659303864216,0.00332472,23633.0,23632.0,1.70375233]
[1659303864673,0.00332472,23633.0,23632.0,1.40375233]
[1659303864898,0.00332472,23633.0,23632.0,0.068]
[1659303865147,0.30566972,23633.0,23632.0,0.068]
[1659303865361,0.30566972,23633.0,23631.0,0.00253698]
[1659303865362,0.04673,23632.0,23631.0,0.00253698]
[1659303865588,0.349075,23632.0,23631.0,0.00253698]
[1659303865820,0.04673,23632.0,23629.0,0.04205]
[1659303866050,0.05940866,23630.0,23629.0,0.04205]
[1659303867009,0.03177,23631.0,23629.0,0.04205]
[1659303867242,0.05168178,23632.0,23629.0,0.04205]
[1659303867243,0.08345178,23632.0,23629.0,0.04205]
[1659303867475,0.05168178,23632.0,23629.0,0.04205]
[1659303867758,0.05,23630.0,23629.0,0.34205]
[1659303867970,0.00168178,23630.0,23629.0,0.12105]
[1659303868658,0.04063227,23630.0,23629.0,0.12105]
[1659303869117,0.07240227,23630.0,23629.0,0.12105]
[1659303869344,0.04063227,23630.0,23629.0,0.04205]
[1659303869570,0.00168178,23630.0,23629.0,0.04205]
[1659303869792,0.04063227,23630.0,23629.0,0.04205]
[1659303870017,0.04063227,23630.0,23629.0,0.12105]
[1659303870506,0.00168178,23630.0,23629.0,0.12105]
[1659303870720,0.05,23631.0,23630.0,0.04831822]
[1659303870941,0.08895049,23631.0,23630.0,0.04831822]
[1659303871164,0.52797782,23631.0,23630.0,0.04831822]
[1659303871393,0.83032282,23631.0,23630.0,0.04831822]
[1659303871870,0.79855282,23631.0,23630.0,0.04831822]
[1659303872112,0.79855282,23631.0,23630.0,0.12731822]
[1659303873032,0.75960233,23631.0,23630.0,0.12731822]
[1659303873937,0.75960233,23631.0,23630.0,0.04831822]
[1659303874205,0.75960233,23631.0,23630.0,0.12731822]
[1659303874981,0.76288627,23631.0,23630.0,0.12731822]
[1659303875431,0.76288627,23631.0,23630.0,0.04831822]
[1659303876135,0.76288627,23631.0,23630.0,0.12731822]
[1659303876657,0.80183676,23631.0,23630.0,0.12731822]
[1659303876878,0.76288627,23631.0,23630.0,0.12731822]
[1659303877312,0.76288627,23631.0,23630.0,0.04831822]
[1659303877539,0.80183676,23631.0,23630.0,0.04831822]
[1659303877764,0.46054127,23631.0,23630.0,0.04831822]
[1659303878006,0.76288627,23631.0,23630.0,0.12731822]
[1659303878226,0.46054127,23631.0,23630.0,0.12731822]
[1659303878444,0.80183676,23631.0,23630.0,0.12731822]
[1659303879239,0.80183676,23631.0,23630.0,0.04831822]
[1659303880072,0.80183676,23631.0,23630.0,0.12731822]
[1659303881502,0.80183676,23631.0,23630.0,0.04831822]
[1659303881991,0.76288627,23631.0,23630.0,0.12731822]
[1659303883373,0.76288627,23631.0,23630.0,0.04831822]
[1659303884040,0.76288627,23631.0,23630.0,0.12731822]
[1659303884301,0.80183676,23631.0,23630.0,0.12731822]
[1659303884531,0.76288627,23631.0,23630.0,0.12731822]
[1659303884971,0.35562894,23631.0,23630.0,0.12731822]
[1659303885434,0.35562894,23631.0,23630.0,0.04831822]
[1659303885678,0.53636614,23634.0,23629.0,0.04205]
[1659303885892,0.53636614,23634.0,23629.0,0.55503933]
[1659303886130,0.53636614,23634.0,23630.0,0.484734]
[1659303886367,0.00328394,23631.0,23630.0,0.484734]
[1659303887301,0.53949022,23634.0,23630.0,0.4850571]
[1659303888186,0.53949022,23634.0,23630.0,0.6955251]
[1659303888629,0.302335,23633.0,23630.0,0.6955251]
[1659303888848,0.302335,23632.0,23630.0,0.6955251]
[1659303889102,0.53949022,23634.0,23630.0,0.6955251]
[1659303889344,0.302335,23633.0,23630.0,0.6175251]
[1659303889770,0.302335,23632.0,23630.0,0.6175251]
[1659303889985,0.53949022,23634.0,23630.0,0.6965251]
[1659303890191,0.302335,23633.0,23630.0,0.6965251]
[1659303890436,0.302335,23632.0,23630.0,0.6965251]
[1659303890667,0.53949022,23634.0,23630.0,0.3965251]
[1659303890884,0.302335,23633.0,23631.0,0.3]
[1659303891099,0.302335,23632.0,23630.0,0.4850571]
[1659303891315,0.302335,23631.0,23630.0,0.4060571]
[1659303891541,0.53949022,23634.0,23630.0,0.1060571]
[1659303892075,0.53949022,23634.0,23630.0,0.1850571]
[1659303892298,0.00152732,23631.0,23630.0,0.9692071]
[1659303892531,0.001,23635.0,23633.0,0.05]
[1659303892768,0.001,23635.0,23634.0,0.52085733]
[1659303892991,0.001,23635.0,23634.0,0.75725733]
[1659303893897,0.001,23635.0,23634.0,0.70725733]
[1659303894126,0.001,23635.0,23634.0,0.76025733]
[1659303895265,0.00249338,23635.0,23634.0,0.96873233]
[1659303895495,0.00249338,23635.0,23634.0,0.92837581]
[1659303895974,0.00249338,23635.0,23634.0,0.87561081]
[1659303896211,0.001,23642.0,23639.0,0.2]
[1659303896438,0.001,23642.0,23639.0,1.47145733]
[1659303896657,0.001,23642.0,23639.0,1.58684181]
[1659303896894,0.001,23642.0,23639.0,1.62958663]
[1659303897989,0.001,23642.0,23639.0,1.70458663]
[1659303898224,0.001,23642.0,23639.0,2.06848663]
[1659303899379,0.00144532,23641.0,23639.0,1.99348663]
[1659303900125,0.00144532,23641.0,23639.0,2.07048663]
[1659303900368,0.00144532,23641.0,23639.0,2.47053663]
[1659303900845,0.00144532,23641.0,23639.0,2.52532688]